[Event "FIDE Grand Swiss 2023"]
[Site "Villa Marina, Douglas, Isle of Man, Isle Of Man"]
[Date "2023.11.05"]
[Round "11.18"]
[White "Saric, Ivan"]
[Black "Nihal, Sarin"]
[Result "1/2-1/2"]
[TimeControl "40/90 + 30 + 30s/move"]
[WhiteFideId "14508150"]
[BlackFideId "25092340"]
[WhiteElo "2647"]
[BlackElo "2694"]

1. e4 {[%clk 01:40:58]} {[%emt 00:00:01]} e5 {[%clk 01:40:38]} {[%emt
00:00:22]} 2. Nf3 {[%clk 01:41:24]} {[%emt 00:00:04]} Nc6 {[%clk 01:41:03]}
{[%emt 00:00:05]} 3. Bc4 {[%clk 01:41:42]} {[%emt 00:00:13]} Bc5 {[%clk
01:41:23]} {[%emt 00:00:09]} 4. Nc3 {[%clk 01:42:03]} {[%emt 00:00:09]} Nf6
{[%clk 01:41:43]} {[%emt 00:00:09]} 5. d3 {[%clk 01:42:30]} {[%emt 00:00:05]}
h6 {[%clk 01:37:20]} {[%emt 00:04:52]} 6. O-O {[%clk 01:42:25]} {[%emt
00:00:36]} O-O {[%clk 01:33:20]} {[%emt 00:04:30]} 7. h3 {[%clk 01:42:23]}
{[%emt 00:00:32]} d6 {[%clk 01:29:51]} {[%emt 00:03:57]} 8. Na4 {[%clk
01:42:40]} {[%emt 00:00:14]} Bb6 {[%clk 01:29:29]} {[%emt 00:00:52]} 9. a3
{[%clk 01:42:17]} {[%emt 00:00:54]} Bd7 {[%clk 01:27:28]} {[%emt 00:02:30]} 10.
Nxb6 {[%clk 01:39:45]} {[%emt 00:03:03]} axb6 {[%clk 01:27:51]} {[%emt
00:00:06]} 11. Re1 {[%clk 01:38:02]} {[%emt 00:02:14]} Re8 {[%clk 01:27:58]}
{[%emt 00:00:22]} 12. c3 {[%clk 01:37:43]} {[%emt 00:00:49]} Be6 {[%clk
01:24:55]} {[%emt 00:03:32]} 13. Bb5 {[%clk 01:35:25]} {[%emt 00:02:49]} Bd7
{[%clk 01:25:21]} {[%emt 00:00:05]} 14. a4 {[%clk 01:20:32]} {[%emt 00:15:24]}
Ne7 {[%clk 01:24:32]} {[%emt 00:01:18]} 15. Be3 {[%clk 01:20:21]} {[%emt
00:00:40]} Ng6 {[%clk 01:23:19]} {[%emt 00:01:43]} 16. Bxd7 {[%clk 01:12:34]}
{[%emt 00:08:18]} Qxd7 {[%clk 01:23:42]} {[%emt 00:00:06]} 17. c4 {[%clk
01:12:57]} {[%emt 00:00:09]} Nh7 {[%clk 01:15:45]} {[%emt 00:08:25]} 18. b3
{[%clk 01:06:44]} {[%emt 00:06:43]} f5 {[%clk 00:54:24]} {[%emt 00:21:51]} 19.
exf5 {[%clk 01:07:02]} {[%emt 00:00:13]} Qxf5 {[%clk 00:54:47]} {[%emt
00:00:06]} 20. d4 {[%clk 01:06:29]} {[%emt 00:01:03]} e4 {[%clk 00:53:18]}
{[%emt 00:01:59]} 21. Nd2 {[%clk 01:06:04]} {[%emt 00:00:55]} Nf6 {[%clk
00:52:27]} {[%emt 00:01:22]} 22. Nf1 {[%clk 01:00:09]} {[%emt 00:06:25]} Nh4
{[%clk 00:50:31]} {[%emt 00:02:25]} 23. Ng3 {[%clk 00:59:55]} {[%emt 00:00:44]}
Qg6 {[%clk 00:50:32]} {[%emt 00:00:29]} 24. d5 {[%clk 00:59:00]} {[%emt
00:01:27]} Re7 {[%clk 00:34:57]} {[%emt 00:16:04]} 25. Bd4 {[%clk 00:58:02]}
{[%emt 00:01:29]} Rf8 {[%clk 00:34:24]} {[%emt 00:01:02]} 26. Ra2 {[%clk
00:58:11]} {[%emt 00:00:21]} h5 {[%clk 00:34:40]} {[%emt 00:00:14]} 27. Re3
{[%clk 00:50:52]} {[%emt 00:07:49]} Nxg2 {[%clk 00:29:42]} {[%emt 00:05:28]} 28.
Kxg2 {[%clk 00:51:19]} {[%emt 00:00:04]} h4 {[%clk 00:30:06]} {[%emt 00:00:05]}
29. Bxf6 {[%clk 00:50:46]} {[%emt 00:01:03]} Rxf6 {[%clk 00:30:31]} {[%emt
00:00:05]} 30. Qh5 {[%clk 00:48:10]} {[%emt 00:03:06]} hxg3 {[%clk 00:30:47]}
{[%emt 00:00:14]} 31. Qxg6 {[%clk 00:48:36]} {[%emt 00:00:04]} Rxg6 {[%clk
00:31:12]} {[%emt 00:00:05]} 32. fxg3 {[%clk 00:48:52]} {[%emt 00:00:14]} Rg5
{[%clk 00:31:37]} {[%emt 00:00:06]} 33. h4 {[%clk 00:45:46]} {[%emt 00:03:36]}
Rge5 {[%clk 00:31:24]} {[%emt 00:00:42]} 34. Kh3 {[%clk 00:27:06]} {[%emt
00:19:10]} g6 {[%clk 00:30:06]} {[%emt 00:01:48]} 35. Kg4 {[%clk 00:24:35]}
{[%emt 00:03:00]} Kg7 {[%clk 00:30:09]} {[%emt 00:00:27]} 36. Rf2 {[%clk
00:22:15]} {[%emt 00:02:53]} Re8 {[%clk 00:29:53]} {[%emt 00:00:44]} 37. Rf1
{[%clk 00:22:28]} {[%emt 00:00:17]} R8e7 {[%clk 00:28:19]} {[%emt 00:02:04]} 38.
b4 {[%clk 00:18:30]} {[%emt 00:04:28]} Re8 {[%clk 00:26:54]} {[%emt 00:01:56]}
39. b5 {[%clk 00:18:37]} {[%emt 00:00:23]} Ra8 {[%clk 00:23:14]} {[%emt
00:04:10]} 40. Rf4 {[%clk 00:18:28]} {[%emt 00:00:38]} Rae8 {[%clk 00:23:24]}
{[%emt 00:00:20]} 41. Kh3 {[%clk 00:18:01]} {[%emt 00:00:58]} R8e7 {[%clk
00:41:23]} {[%emt 00:32:30]} 42. g4 {[%clk 01:06:56]} {[%emt 00:01:35]} c6
{[%clk 00:26:43]} {[%emt 00:15:10]} 43. bxc6 {[%clk 01:06:15]} {[%emt
00:01:11]} bxc6 {[%clk 00:26:56]} {[%emt 00:00:17]} 44. dxc6 {[%clk 01:06:39]}
{[%emt 00:00:06]} Rc7 {[%clk 00:27:21]} {[%emt 00:00:04]} 45. g5 {[%clk
01:05:03]} {[%emt 00:02:06]} Rxc6 {[%clk 00:26:34]} {[%emt 00:01:17]} 46. Rexe4
{[%clk 01:05:24]} {[%emt 00:00:09]} Rxe4 {[%clk 00:23:52]} {[%emt 00:03:12]} 47.
Rxe4 {[%clk 01:05:49]} {[%emt 00:00:06]} Rc7 {[%clk 00:24:17]} {[%emt
00:00:04]} 48. Kg4 {[%clk 00:50:09]} {[%emt 00:16:10]} Ra7 {[%clk 00:24:23]}
{[%emt 00:00:24]} 49. h5 {[%clk 00:50:36]} {[%emt 00:00:04]} Rxa4 {[%clk
00:20:27]} {[%emt 00:04:26]} 50. h6+ {[%clk 00:50:49]} {[%emt 00:00:17]} Kh7
{[%clk 00:20:27]} {[%emt 00:00:29]} 51. Re7+ {[%clk 00:49:45]} {[%emt
00:01:34]} Kh8 {[%clk 00:20:48]} {[%emt 00:00:09]} 52. Rg7 {[%clk 00:49:40]}
{[%emt 00:00:35]} Rxc4+ {[%clk 00:21:05]} {[%emt 00:00:13]} 53. Kf3 {[%clk
00:49:45]} {[%emt 00:00:26]} Rc3+ {[%clk 00:16:13]} {[%emt 00:05:21]} 54. Kf4
{[%clk 00:49:47]} {[%emt 00:00:28]} Rc4+ {[%clk 00:16:39]} {[%emt 00:00:04]} 55.
Ke3 {[%clk 00:50:13]} {[%emt 00:00:04]} Rc3+ {[%clk 00:15:59]} {[%emt
00:01:09]} 56. Kd4 {[%clk 00:50:07]} {[%emt 00:00:38]} Rc5 {[%clk 00:16:00]}
{[%emt 00:00:27]} 57. Rxg6 {[%clk 00:50:07]} {[%emt 00:00:31]} b5 {[%clk
00:16:25]} {[%emt 00:00:05]} 58. Ke4 {[%clk 00:22:06]} {[%emt 00:28:31]} b4
{[%clk 00:16:29]} {[%emt 00:00:25]} 59. Kf4 {[%clk 00:22:08]} {[%emt 00:00:29]}
b3 {[%clk 00:16:35]} {[%emt 00:00:25]} 60. Rxd6 {[%clk 00:22:29]} {[%emt
00:00:09]} Rb5 {[%clk 00:17:02]} {[%emt 00:00:03]} 61. Rd8+ {[%clk 00:22:46]}
{[%emt 00:00:12]} Kh7 {[%clk 00:17:27]} {[%emt 00:00:05]} 62. Rd7+ {[%clk
00:23:14]} {[%emt 00:00:03]} Kh8 {[%clk 00:17:49]} {[%emt 00:00:07]} 1/2-1/2

[Event "FIDE Grand Swiss 2023"]
[Site "Villa Marina, Douglas, Isle of Man, Isle Of Man"]
[Date "2023.11.05"]
[Round "11.19"]
[White "Najer, Evgeniy"]
[Black "Tabatabaei, M. Amin"]
[Result "1/2-1/2"]
[TimeControl "40/90 + 30 + 30s/move"]
[WhiteFideId "4118987"]
[BlackFideId "12521213"]
[WhiteElo "2648"]
[BlackElo "2685"]

1. e4 {[%clk 01:40:58]} {[%emt 00:00:02]} c6 {[%clk 01:37:53]} {[%emt
00:03:08]} 2. d4 {[%clk 01:41:13]} {[%emt 00:00:14]} d5 {[%clk 01:38:15]}
{[%emt 00:00:08]} 3. e5 {[%clk 01:39:49]} {[%emt 00:01:55]} c5 {[%clk
01:38:35]} {[%emt 00:00:09]} 4. Nf3 {[%clk 01:40:02]} {[%emt 00:00:17]} cxd4
{[%clk 01:38:56]} {[%emt 00:00:10]} 5. Qxd4 {[%clk 01:39:34]} {[%emt 00:00:58]}
Nc6 {[%clk 01:39:15]} {[%emt 00:00:10]} 6. Qf4 {[%clk 01:39:59]} {[%emt
00:00:05]} e6 {[%clk 01:39:29]} {[%emt 00:00:16]} 7. Nc3 {[%clk 01:39:07]}
{[%emt 00:01:22]} Bd7 {[%clk 01:35:20]} {[%emt 00:04:39]} 8. a3 {[%clk
01:36:44]} {[%emt 00:02:53]} Nge7 {[%clk 01:31:33]} {[%emt 00:04:17]} 9. Bd3
{[%clk 01:35:40]} {[%emt 00:01:34]} Ng6 {[%clk 01:31:20]} {[%emt 00:00:44]} 10.
Qg3 {[%clk 01:35:37]} {[%emt 00:00:32]} Qb8 {[%clk 01:26:43]} {[%emt 00:05:07]}
11. Bxg6 {[%clk 01:30:47]} {[%emt 00:05:20]} hxg6 {[%clk 01:26:46]} {[%emt
00:00:26]} 12. O-O {[%clk 01:31:08]} {[%emt 00:00:10]} Ne7 {[%clk 01:16:07]}
{[%emt 00:11:10]} 13. Re1 {[%clk 00:48:13]} {[%emt 00:43:24]} Nf5 {[%clk
01:16:12]} {[%emt 00:00:24]} 14. Qf4 {[%clk 00:47:12]} {[%emt 00:01:31]} Be7
{[%clk 01:14:14]} {[%emt 00:02:28]} 15. Qg4 {[%clk 00:42:51]} {[%emt 00:04:52]}
Qc7 {[%clk 01:07:07]} {[%emt 00:07:37]} 16. Bg5 {[%clk 00:38:58]} {[%emt
00:04:23]} Bc5 {[%clk 01:07:25]} {[%emt 00:00:12]} 17. Qf4 {[%clk 00:31:00]}
{[%emt 00:08:28]} Qb6 {[%clk 01:00:43]} {[%emt 00:07:12]} 18. Qd2 {[%clk
00:30:43]} {[%emt 00:00:46]} Rc8 {[%clk 00:59:48]} {[%emt 00:01:26]} 19. Rab1
{[%clk 00:30:36]} {[%emt 00:00:36]} a5 {[%clk 00:59:35]} {[%emt 00:00:43]} 20.
Na2 {[%clk 00:27:40]} {[%emt 00:03:27]} Qa7 {[%clk 00:55:05]} {[%emt 00:05:00]}
21. Nc1 {[%clk 00:26:46]} {[%emt 00:01:24]} Bb6 {[%clk 00:51:39]} {[%emt
00:03:56]} 22. Nd3 {[%clk 00:26:02]} {[%emt 00:01:13]} Rc4 {[%clk 00:48:16]}
{[%emt 00:03:54]} 23. b3 {[%clk 00:25:13]} {[%emt 00:01:20]} Rg4 {[%clk
00:46:49]} {[%emt 00:01:55]} 24. a4 {[%clk 00:23:30]} {[%emt 00:02:13]} Bc6
{[%clk 00:43:04]} {[%emt 00:04:15]} 25. Bf4 {[%clk 00:22:26]} {[%emt 00:01:35]}
Bd8 {[%clk 00:30:02]} {[%emt 00:13:31]} 26. h3 {[%clk 00:13:17]} {[%emt
00:09:40]} Rxh3 {[%clk 00:27:20]} {[%emt 00:03:12]} 27. Nh2 {[%clk 00:13:43]}
{[%emt 00:00:03]} Rxh2 {[%clk 00:15:44]} {[%emt 00:12:07]} 28. Kxh2 {[%clk
00:14:09]} {[%emt 00:00:04]} Be7 {[%clk 00:10:06]} {[%emt 00:06:08]} 29. b4
{[%clk 00:04:50]} {[%emt 00:09:50]} g5 {[%clk 00:08:31]} {[%emt 00:02:04]} 30.
Bg3 {[%clk 00:05:16]} {[%emt 00:00:04]} axb4 {[%clk 00:08:26]} {[%emt
00:00:35]} 31. Nxb4 {[%clk 00:04:45]} {[%emt 00:01:01]} Bxa4 {[%clk 00:08:44]}
{[%emt 00:00:12]} 32. c3 {[%clk 00:04:33]} {[%emt 00:00:42]} Qc5 {[%clk
00:06:14]} {[%emt 00:03:00]} 33. Nc2 {[%clk 00:01:56]} {[%emt 00:03:07]} b5
{[%clk 00:04:21]} {[%emt 00:02:23]} 34. Ne3 {[%clk 00:01:46]} {[%emt 00:00:39]}
Nxe3 {[%clk 00:04:44]} {[%emt 00:00:07]} 35. Rxe3 {[%clk 00:02:09]} {[%emt
00:00:07]} Rc4 {[%clk 00:05:09]} {[%emt 00:00:05]} 36. Rd3 {[%clk 00:02:14]}
{[%emt 00:00:24]} Kd7 {[%clk 00:04:26]} {[%emt 00:01:14]} 37. Rf3 {[%clk
00:01:55]} {[%emt 00:00:49]} Qc8 {[%clk 00:01:42]} {[%emt 00:03:14]} 38. Rxf7
{[%clk 00:01:28]} {[%emt 00:00:57]} Qe8 {[%clk 00:02:10]} {[%emt 00:00:01]} 39.
Rxe7+ {[%clk 00:00:37]} {[%emt 00:01:22]} Qxe7 {[%clk 00:02:32]} {[%emt
00:00:08]} 40. Rb4 {[%clk 00:00:33]} {[%emt 00:00:34]} Rc8 {[%clk 00:00:35]}
{[%emt 00:02:26]} 41. Rg4 {[%clk 00:41:09]} {[%emt 00:09:55]} Rh8+ {[%clk
00:49:50]} {[%emt 00:01:15]} 42. Kg1 {[%clk 00:40:19]} {[%emt 00:01:20]} Qa3
{[%clk 00:50:04]} {[%emt 00:00:16]} 43. f3 {[%clk 00:38:22]} {[%emt 00:02:27]}
Rh5 {[%clk 00:44:04]} {[%emt 00:06:29]} 44. Be1 {[%clk 00:25:13]} {[%emt
00:13:39]} Qa1 {[%clk 00:40:50]} {[%emt 00:03:44]} 45. Kf2 {[%clk 00:15:27]}
{[%emt 00:10:17]} Rh1 {[%clk 00:35:47]} {[%emt 00:05:32]} 46. Rxg5 {[%clk
00:15:27]} {[%emt 00:00:31]} Bb3 {[%clk 00:36:09]} {[%emt 00:00:08]} 47. Rxg7+
{[%clk 00:14:48]} {[%emt 00:01:09]} Kc6 {[%clk 00:35:48]} {[%emt 00:00:51]} 48.
Qe3 {[%clk 00:12:43]} {[%emt 00:02:34]} Bc4 {[%clk 00:31:34]} {[%emt 00:04:45]}
49. Rc7+ {[%clk 00:10:32]} {[%emt 00:02:40]} Kxc7 {[%clk 00:31:49]} {[%emt
00:00:15]} 50. Qc5+ {[%clk 00:10:58]} {[%emt 00:00:04]} Kb8 {[%clk 00:32:05]}
{[%emt 00:00:12]} 51. Qb6+ {[%clk 00:09:47]} {[%emt 00:01:43]} Ka8 {[%clk
00:32:30]} {[%emt 00:00:06]} 52. Qc6+ {[%clk 00:09:48]} {[%emt 00:00:29]} Kb8
{[%clk 00:32:56]} {[%emt 00:00:04]} 53. Qb6+ {[%clk 00:10:04]} {[%emt
00:00:13]} Ka8 {[%clk 00:33:21]} {[%emt 00:00:05]} 54. Qc6+ {[%clk 00:10:32]}
{[%emt 00:00:02]} 1/2-1/2

[Event "FIDE Grand Swiss 2023"]
[Site "Villa Marina, Douglas, Isle of Man, Isle Of Man"]
[Date "2023.11.05"]
[Round "11.20"]
[White "Narayanan.S.L"]
[Black "Matlakov, Maxim"]
[Result "1/2-1/2"]
[TimeControl "40/90 + 30 + 30s/move"]
[WhiteFideId "5058422"]
[BlackFideId "4168003"]
[WhiteElo "2651"]
[BlackElo "2674"]

1. d4 {[%clk 01:40:56]} {[%emt 00:00:02]} Nf6 {[%clk 01:40:52]} {[%emt
00:00:09]} 2. c4 {[%clk 01:41:21]} {[%emt 00:00:06]} e6 {[%clk 01:41:16]}
{[%emt 00:00:06]} 3. Nf3 {[%clk 01:41:45]} {[%emt 00:00:05]} d5 {[%clk
01:41:29]} {[%emt 00:00:17]} 4. Nc3 {[%clk 01:42:10]} {[%emt 00:00:06]} Be7
{[%clk 01:41:40]} {[%emt 00:00:19]} 5. Bf4 {[%clk 01:42:24]} {[%emt 00:00:15]}
O-O {[%clk 01:41:50]} {[%emt 00:00:21]} 6. a3 {[%clk 01:42:49]} {[%emt
00:00:04]} c5 {[%clk 01:41:59]} {[%emt 00:00:22]} 7. dxc5 {[%clk 01:42:46]}
{[%emt 00:00:32]} Bxc5 {[%clk 01:42:23]} {[%emt 00:00:06]} 8. e3 {[%clk
01:42:57]} {[%emt 00:00:20]} Nc6 {[%clk 01:42:14]} {[%emt 00:00:40]} 9. cxd5
{[%clk 01:31:35]} {[%emt 00:11:51]} Nxd5 {[%clk 01:40:52]} {[%emt 00:01:52]} 10.
Nxd5 {[%clk 01:31:59]} {[%emt 00:00:06]} exd5 {[%clk 01:41:13]} {[%emt
00:00:09]} 11. Bd3 {[%clk 01:32:12]} {[%emt 00:00:17]} Bd6 {[%clk 01:41:03]}
{[%emt 00:00:39]} 12. Bxd6 {[%clk 01:28:14]} {[%emt 00:04:29]} Qxd6 {[%clk
01:40:26]} {[%emt 00:01:08]} 13. O-O {[%clk 01:28:34]} {[%emt 00:00:09]} Qf6
{[%clk 01:39:51]} {[%emt 00:01:06]} 14. b4 {[%clk 01:25:40]} {[%emt 00:03:23]}
Bg4 {[%clk 01:37:43]} {[%emt 00:02:37]} 15. Be2 {[%clk 01:26:01]} {[%emt
00:00:10]} Rfd8 {[%clk 01:35:36]} {[%emt 00:02:37]} 16. b5 {[%clk 01:25:55]}
{[%emt 00:00:36]} Ne5 {[%clk 01:35:18]} {[%emt 00:00:48]} 17. Nd4 {[%clk
01:23:17]} {[%emt 00:03:08]} Bxe2 {[%clk 01:29:14]} {[%emt 00:06:33]} 18. Qxe2
{[%clk 01:23:38]} {[%emt 00:00:09]} a6 {[%clk 01:28:09]} {[%emt 00:01:36]} 19.
Rfd1 {[%clk 01:15:33]} {[%emt 00:08:35]} g6 {[%clk 01:22:24]} {[%emt 00:06:17]}
20. h3 {[%clk 01:14:17]} {[%emt 00:01:45]} axb5 {[%clk 01:09:08]} {[%emt
00:13:47]} 21. Qxb5 {[%clk 01:13:24]} {[%emt 00:01:22]} Qa6 {[%clk 01:08:41]}
{[%emt 00:00:57]} 22. Rdb1 {[%clk 01:06:15]} {[%emt 00:07:39]} Rd7 {[%clk
01:00:36]} {[%emt 00:08:36]} 23. a4 {[%clk 01:04:54]} {[%emt 00:01:50]} h5
{[%clk 00:47:59]} {[%emt 00:13:07]} 24. Nb3 {[%clk 00:48:07]} {[%emt 00:17:16]}
Rd6 {[%clk 00:30:20]} {[%emt 00:18:11]} 25. Rd1 {[%clk 00:35:10]} {[%emt
00:13:26]} Rad8 {[%clk 00:15:43]} {[%emt 00:15:07]} 26. Nc5 {[%clk 00:30:20]}
{[%emt 00:05:21]} Qxb5 {[%clk 00:15:12]} {[%emt 00:01:00]} 27. axb5 {[%clk
00:30:45]} {[%emt 00:00:05]} Rb6 {[%clk 00:15:15]} {[%emt 00:00:27]} 28. Rab1
{[%clk 00:30:50]} {[%emt 00:00:26]} f5 {[%clk 00:08:11]} {[%emt 00:07:34]} 29.
Rd4 {[%clk 00:23:09]} {[%emt 00:08:09]} Nc6 {[%clk 00:06:02]} {[%emt 00:02:41]}
30. Ra4 {[%clk 00:19:07]} {[%emt 00:04:32]} d4 {[%clk 00:03:32]} {[%emt
00:03:00]} 31. Raa1 {[%clk 00:17:20]} {[%emt 00:02:16]} Ne5 {[%clk 00:02:46]}
{[%emt 00:01:16]} 32. exd4 {[%clk 00:17:39]} {[%emt 00:00:11]} Nf7 {[%clk
00:00:54]} {[%emt 00:02:23]} 33. Rb4 {[%clk 00:17:01]} {[%emt 00:01:07]} Rd5
{[%clk 00:01:00]} {[%emt 00:00:25]} 34. Ra8+ {[%clk 00:14:00]} {[%emt
00:03:31]} Nd8 {[%clk 00:00:35]} {[%emt 00:00:55]} 35. Rc8 {[%clk 00:09:10]}
{[%emt 00:05:19]} Kg7 {[%clk 00:00:40]} {[%emt 00:00:25]} 36. Rc7+ {[%clk
00:09:22]} {[%emt 00:00:19]} Kh6 {[%clk 00:00:53]} {[%emt 00:00:16]} 37. h4
{[%clk 00:07:58]} {[%emt 00:01:55]} Rbd6 {[%clk 00:01:06]} {[%emt 00:00:17]} 38.
Nxb7 {[%clk 00:06:46]} {[%emt 00:01:41]} Nxb7 {[%clk 00:01:28]} {[%emt
00:00:09]} 39. Rxb7 {[%clk 00:07:12]} {[%emt 00:00:04]} Rxd4 {[%clk 00:01:54]}
{[%emt 00:00:04]} 40. Rxd4 {[%clk 00:07:26]} {[%emt 00:00:16]} Rxd4 {[%clk
00:02:20]} {[%emt 00:00:04]} 41. g3 {[%clk 00:06:43]} {[%emt 00:01:12]} f4
{[%clk 00:45:42]} {[%emt 00:07:08]} 42. Kg2 {[%clk 00:55:29]} {[%emt 00:01:44]}
fxg3 {[%clk 00:35:23]} {[%emt 00:10:49]} 43. fxg3 {[%clk 00:55:45]} {[%emt
00:00:14]} Rb4 {[%clk 00:35:46]} {[%emt 00:00:08]} 44. Kf3 {[%clk 00:34:25]}
{[%emt 00:21:50]} Rb3+ {[%clk 00:34:54]} {[%emt 00:01:22]} 45. Kf4 {[%clk
00:34:47]} {[%emt 00:00:06]} Rb4+ {[%clk 00:34:57]} {[%emt 00:00:28]} 46. Ke5
{[%clk 00:35:03]} {[%emt 00:00:14]} Rb3 {[%clk 00:35:09]} {[%emt 00:00:19]} 47.
Kd5 {[%clk 00:18:44]} {[%emt 00:16:49]} Rxg3 {[%clk 00:30:12]} {[%emt
00:05:26]} 48. Re7 {[%clk 00:18:54]} {[%emt 00:00:21]} g5 {[%clk 00:17:10]}
{[%emt 00:13:32]} 49. hxg5+ {[%clk 00:18:52]} {[%emt 00:00:33]} Kg6 {[%clk
00:13:45]} {[%emt 00:03:55]} 50. b6 {[%clk 00:17:23]} {[%emt 00:01:58]} Rb3
{[%clk 00:10:21]} {[%emt 00:03:54]} 51. b7 {[%clk 00:11:55]} {[%emt 00:05:59]}
h4 {[%clk 00:10:46]} {[%emt 00:00:05]} 52. Kc6 {[%clk 00:10:15]} {[%emt
00:02:10]} h3 {[%clk 00:09:01]} {[%emt 00:02:15]} 53. Re8 {[%clk 00:05:06]}
{[%emt 00:05:39]} h2 {[%clk 00:08:27]} {[%emt 00:01:03]} 54. Rh8 {[%clk
00:05:17]} {[%emt 00:00:20]} Rc3+ {[%clk 00:08:51]} {[%emt 00:00:07]} 55. Kd7
{[%clk 00:04:47]} {[%emt 00:00:59]} Rb3 {[%clk 00:08:52]} {[%emt 00:00:29]}
1/2-1/2

[Event "FIDE Grand Swiss 2023"]
[Site "Villa Marina, Douglas, Isle of Man, Isle Of Man"]
[Date "2023.11.05"]
[Round "11.21"]
[White "Sargsyan, Shant"]
[Black "Niemann, Hans Moke"]
[Result "1/2-1/2"]
[TimeControl "40/90 + 30 + 30s/move"]
[WhiteFideId "13306766"]
[BlackFideId "2093596"]
[WhiteElo "2631"]
[BlackElo "2667"]

1. d4 {[%clk 01:39:30]} {[%emt 00:01:28]} Nf6 {[%clk 01:40:50]} {[%emt
00:00:10]} 2. Nf3 {[%clk 01:39:38]} {[%emt 00:00:23]} g6 {[%clk 01:40:41]}
{[%emt 00:00:38]} 3. c4 {[%clk 01:38:35]} {[%emt 00:01:34]} Bg7 {[%clk
01:41:01]} {[%emt 00:00:08]} 4. g3 {[%clk 01:37:44]} {[%emt 00:01:22]} O-O
{[%clk 01:40:08]} {[%emt 00:01:22]} 5. Bg2 {[%clk 01:38:05]} {[%emt 00:00:10]}
d6 {[%clk 01:40:10]} {[%emt 00:00:27]} 6. Nc3 {[%clk 01:37:04]} {[%emt
00:01:32]} Nbd7 {[%clk 01:40:31]} {[%emt 00:00:08]} 7. O-O {[%clk 01:37:11]}
{[%emt 00:00:25]} e5 {[%clk 01:40:54]} {[%emt 00:00:05]} 8. h3 {[%clk
01:35:44]} {[%emt 00:01:58]} Re8 {[%clk 01:38:48]} {[%emt 00:02:35]} 9. e4
{[%clk 01:35:20]} {[%emt 00:00:55]} exd4 {[%clk 01:38:47]} {[%emt 00:00:30]} 10.
Nxd4 {[%clk 01:35:38]} {[%emt 00:00:12]} Nc5 {[%clk 01:39:13]} {[%emt
00:00:05]} 11. Re1 {[%clk 01:34:25]} {[%emt 00:01:44]} h6 {[%clk 01:39:37]}
{[%emt 00:00:05]} 12. Nb3 {[%clk 01:23:47]} {[%emt 00:11:08]} Ne6 {[%clk
01:39:19]} {[%emt 00:00:46]} 13. Kh2 {[%clk 01:21:46]} {[%emt 00:02:34]} a5
{[%clk 01:38:28]} {[%emt 00:01:20]} 14. Be3 {[%clk 01:14:39]} {[%emt 00:07:38]}
a4 {[%clk 01:38:00]} {[%emt 00:00:57]} 15. Nd2 {[%clk 01:14:19]} {[%emt
00:00:50]} a3 {[%clk 01:36:56]} {[%emt 00:01:35]} 16. b4 {[%clk 01:13:18]}
{[%emt 00:01:32]} Nd7 {[%clk 01:35:03]} {[%emt 00:02:19]} 17. Rc1 {[%clk
01:09:11]} {[%emt 00:04:40]} Ne5 {[%clk 01:32:25]} {[%emt 00:03:06]} 18. Bf1
{[%clk 01:05:53]} {[%emt 00:03:50]} c5 {[%clk 01:30:57]} {[%emt 00:01:57]} 19.
b5 {[%clk 01:01:56]} {[%emt 00:04:27]} Nd4 {[%clk 01:30:00]} {[%emt 00:01:27]}
20. f4 {[%clk 01:00:24]} {[%emt 00:02:03]} Nd7 {[%clk 01:30:00]} {[%emt
00:00:28]} 21. Nf3 {[%clk 00:58:30]} {[%emt 00:02:25]} Nxf3+ {[%clk 01:29:11]}
{[%emt 00:01:19]} 22. Qxf3 {[%clk 00:58:55]} {[%emt 00:00:06]} Nb6 {[%clk
01:27:37]} {[%emt 00:02:03]} 23. f5 {[%clk 00:39:37]} {[%emt 00:19:48]} Qf6
{[%clk 01:24:48]} {[%emt 00:03:17]} 24. g4 {[%clk 00:38:12]} {[%emt 00:01:58]}
g5 {[%clk 01:19:52]} {[%emt 00:05:26]} 25. Bf2 {[%clk 00:34:48]} {[%emt
00:03:54]} Nd7 {[%clk 01:19:40]} {[%emt 00:00:42]} 26. Bg3 {[%clk 00:30:13]}
{[%emt 00:05:05]} Ne5 {[%clk 01:18:51]} {[%emt 00:01:17]} 27. Qf2 {[%clk
00:28:51]} {[%emt 00:01:53]} b6 {[%clk 01:18:03]} {[%emt 00:01:19]} 28. Re3
{[%clk 00:22:38]} {[%emt 00:06:44]} Bb7 {[%clk 01:17:37]} {[%emt 00:00:53]} 29.
Rd1 {[%clk 00:22:52]} {[%emt 00:00:18]} Kh8 {[%clk 01:16:51]} {[%emt 00:01:15]}
30. Be2 {[%clk 00:21:28]} {[%emt 00:01:55]} Qe7 {[%clk 01:13:55]} {[%emt
00:03:24]} 31. h4 {[%clk 00:19:13]} {[%emt 00:02:46]} Bf6 {[%clk 01:13:03]}
{[%emt 00:01:22]} 32. h5 {[%clk 00:18:46]} {[%emt 00:00:57]} Kh7 {[%clk
01:12:51]} {[%emt 00:00:42]} 33. Kh3 {[%clk 00:18:42]} {[%emt 00:00:35]} Red8
{[%clk 01:12:04]} {[%emt 00:01:16]} 34. Qe1 {[%clk 00:12:17]} {[%emt 00:06:56]}
Rd7 {[%clk 01:11:58]} {[%emt 00:00:34]} 35. Qd2 {[%clk 00:09:22]} {[%emt
00:03:26]} Qd8 {[%clk 01:12:19]} {[%emt 00:00:09]} 36. Rb1 {[%clk 00:06:49]}
{[%emt 00:03:05]} Ra5 {[%clk 01:11:51]} {[%emt 00:00:57]} 37. Rd1 {[%clk
00:06:57]} {[%emt 00:00:24]} Qa8 {[%clk 01:11:31]} {[%emt 00:00:48]} 38. Qc2
{[%clk 00:06:48]} {[%emt 00:00:39]} Ra7 {[%clk 01:10:51]} {[%emt 00:01:09]} 39.
Rd2 {[%clk 00:06:24]} {[%emt 00:00:56]} Kg7 {[%clk 01:06:39]} {[%emt 00:04:42]}
1/2-1/2